fUSD/lending_fUSD_20240615
["ID","MTS","AMOUNT","RATE_DAILY","PERIOD"]
[329515951,1718410307621,-500.0,0.00024931,3]
[329515952,1718410307643,-2886.16,0.00024931,3]
[329515953,1718410307672,-153.0437648,0.00024952,2]
[329515954,1718410307686,-166.81517629,0.00024992,2]
[329515955,1718410307786,-160.9244403,0.00024993,2]
[329515956,1718410307857,-326.45039702,0.00025,2]
[329515957,1718410307915,-155.0,0.00025,2]
[329515958,1718410307935,-707.20018038,0.00025,2]
[329515959,1718410308025,-155.0,0.00025,2]
[329515960,1718410308050,-833.76716776,0.00025,2]
[329515961,1718410308089,-931.33430512,0.00025,2]
[329515962,1718410308104,-27795.62834642,0.00025,2]
[329515963,1718410308122,-326.32284748,0.00025,2]
[329515964,1718410308136,-159.24549886,0.00025,2]
[329515965,1718410308149,-225.42116399,0.00025,2]
[329515966,1718410308204,-457.76,0.00025,2]
[329515967,1718410308230,-613.0,0.00025,13]
[329515968,1718410308293,-150.38481616,0.00025003,2]
[329515969,1718410308307,-403.46864164,0.00025007,2]
[329515970,1718410308341,-540.76402691,0.00025024,2]
[329515971,1718410308428,-151.61524425,0.00025062,2]
[329515972,1718410308505,-168.96738456,0.00025083,2]
[329515973,1718410308530,-250.41456096,0.00025084,2]
[329515974,1718410308565,-161.18414086,0.00025098,2]
[329515975,1718410308618,-155.32252975,0.00025105,2]
[329515976,1718410308654,-540.76402691,0.0002514,2]
[329515977,1718410308664,-446.59982923,0.00025158,2]
[329515978,1718410308714,-160.9244403,0.0002517,2]
[329515979,1718410308756,-150.38481616,0.0002519,2]
[329515980,1718410308767,-2193.42114598,0.00025194,2]
[329515981,1718410308803,-152.79946212,0.00025204,2]
[329515982,1718410308819,-500.0,0.00025205,3]
[329515983,1718410308852,-1383.49,0.00025205,3]
[329515984,1718410308864,-500.0,0.00025205,3]
[329515985,1718410308880,-500.0,0.00025205,3]
[329515986,1718410308908,-150.0,0.00025205,3]
[329515987,1718410308920,-500.0,0.00025205,3]
[329515988,1718410308953,-557.17,0.00025205,3]
[329515989,1718410308981,-675.73,0.00025205,3]
[329515990,1718410309009,-14489.11,0.00025205,3]
[329515991,1718410309039,-1484.64,0.00025205,3]
[329515992,1718410309051,-500.0,0.00025205,3]
[329515993,1718410309078,-500.0,0.00025205,3]
[329515994,1718410309104,-3525.04,0.00025205,3]
[329515995,1718410309141,-500.0,0.00025205,3]
[329515996,1718410309176,-1618.45,0.00025205,3]
[329515997,1718410309188,-1550.33,0.00025205,3]
[329515998,1718410309199,-500.0,0.00025205,3]
[329515999,1718410309210,-500.0,0.00025205,3]
[329516000,1718410309223,-1023.73,0.00025205,3]
[329516001,1718410309240,-153.54318877,0.00025205,2]
[329516002,1718410309259,-809.82,0.00025205,3]
[329516003,1718410309270,-21338.5,0.00025205,3]
[329516004,1718410309286,-500.0,0.00025205,3]
[329516005,1718410309302,-500.0,0.00025205,3]
[329516006,1718410309317,-500.0,0.00025205,3]
[329516007,1718410309329,-990.64,0.00025205,3]
[329516008,1718410309353,-1229.59,0.00025205,3]
[329516009,1718410309408,-500.0,0.00025205,3]
[329516010,1718410309420,-669.58,0.00025205,3]
[329516011,1718410309443,-500.0,0.00025205,3]
[329516012,1718410309470,-807.18,0.00025205,3]
[329516013,1718410309496,-612.37,0.00025205,3]
[329516014,1718410309527,-5017.63,0.00025205,3]
[329516015,1718410309567,-714.36,0.00025205,3]
[329516016,1718410309614,-500.0,0.00025205,3]
[329516017,1718410309634,-500.0,0.00025205,3]
[329516018,1718410309648,-1125.2,0.00025205,3]
[329516019,1718410309676,-844.74,0.00025205,3]
[329516020,1718410309692,-500.0,0.00025205,3]
[329516021,1718410309752,-742.58,0.00025205,3]
[329516022,1718410309786,-903.03,0.00025205,3]
[329516023,1718410309806,-500.0,0.00025205,3]
[329516024,1718410309876,-500.0,0.00025205,3]
[329516025,1718410309904,-500.0,0.00025205,3]
[329516026,1718410309952,-355.39332804,0.00025205,3]
[329516027,1718410309983,-870.64,0.00025205,3]
[329516028,1718410310032,-500.0,0.00025205,3]
[329516029,1718410310069,-500.0,0.00025205,3]
[329516030,1718410310164,-746.77,0.00025205,3]
[329516031,1718410310182,-500.0,0.00025205,3]
[329516032,1718410310197,-500.0,0.00025205,3]
[329516033,1718410310219,-1740.68,0.00025205,3]
[329516034,1718410310289,-500.0,0.00025205,3]
[329516035,1718410310345,-2631.88,0.00025205,3]
[329516036,1718410310375,-2758.28,0.00025205,3]
[329516037,1718410310400,-500.0,0.00025205,3]
[329516038,1718410310452,-2886.16,0.00025205,3]
[329516039,1718410310484,-1000.0,0.00025205,2]
[329516040,1718410310531,-2193.42114598,0.00025215,2]
[329516041,1718410310541,-1019.41802567,0.00025225,2]
[329516042,1718410310558,-155.85640552,0.00025242,2]
[329516043,1718410310620,-2988.80474067,0.00025259,2]
[329516044,1718410310636,-155.85640552,0.00025279,2]
[329516045,1718410310669,-153.25500121,0.00025292,2]
[329516046,1718410310706,-161.18414086,0.00025303,2]
[329516047,1718410310741,-153.48233137,0.00025307,2]
[329516048,1718410310767,-150.442,0.00025329,2]
[329516049,1718410310816,-2100.0,0.00025329,2]
[329516050,1718410310837,-250.41456096,0.00025349,2]
[329516051,1718410310860,-1008.54,0.00025365,2]
[329516052,1718410310893,-161.18414086,0.00025373,2]
[329516053,1718410310914,-403.46864164,0.00025392,2]
[329516054,1718410310932,-153.0437648,0.00025422,2]
[329516055,1718410310989,-403.46864164,0.00025447,2]
[329516056,1718410310999,-160.72275663,0.0002547,2]
[329516057,1718410311011,-500.0,0.00025479,3]
[329516058,1718410311032,-1383.49,0.00025479,3]
[329516059,1718410311052,-500.0,0.00025479,3]
[329516060,1718410311072,-500.0,0.00025479,3]
[329516061,1718410311083,-150.0,0.00025479,3]
[329516062,1718410311126,-500.0,0.00025479,3]
[329516063,1718410311216,-557.17,0.00025479,3]
[329516064,1718410311240,-675.73,0.00025479,3]
[329516065,1718410311252,-14489.11,0.00025479,3]
[329516066,1718410311264,-1484.64,0.00025479,3]
[329516067,1718410311311,-500.0,0.00025479,3]
[329516068,1718410311388,-500.0,0.00025479,3]
[329516069,1718410311440,-3525.04,0.00025479,3]
[329516070,1718410311453,-500.0,0.00025479,3]
[329516071,1718410311478,-1618.45,0.00025479,3]
[329516072,1718410311501,-1550.33,0.00025479,3]
[329516073,1718410311528,-436.72525959,0.00025479,3]
[329516074,1718410311541,-321.06799025,0.00025479,3]
[329516075,1718410311576,-1023.73,0.00025479,3]
[329516076,1718410311600,-809.82,0.00025479,3]
[329516077,1718410311612,-21338.5,0.00025479,3]
[329516078,1718410311642,-543.03026936,0.00025479,3]
[329516079,1718410311654,-500.0,0.00025479,3]
[329516080,1718410311666,-500.0,0.00025479,3]
[329516081,1718410311697,-990.64,0.00025479,3]
[329516082,1718410311742,-1229.59,0.00025479,3]
[329516083,1718410311796,-500.0,0.00025479,3]
[329516084,1718410311836,-669.58,0.00025479,3]
[329516085,1718410311857,-500.0,0.00025479,3]
[329516086,1718410311873,-807.18,0.00025479,3]
[329516087,1718410311908,-612.37,0.00025479,3]
[329516088,1718410311918,-5017.63,0.00025479,3]
[329516089,1718410311938,-714.36,0.00025479,3]
[329516090,1718410311973,-500.0,0.00025479,3]
[329516091,1718410311985,-500.0,0.00025479,3]
[329516092,1718410312048,-1125.2,0.00025479,3]
[329516093,1718410312090,-844.74,0.00025479,3]
[329516094,1718410312101,-500.0,0.00025479,3]
[329516095,1718410312118,-742.58,0.00025479,3]
[329516096,1718410312144,-903.03,0.00025479,3]
[329516097,1718410312181,-618.34118324,0.00025479,3]
[329516098,1718410312276,-500.0,0.00025479,3]
[329516099,1718410312289,-500.0,0.00025479,3]
[329516100,1718410312320,-870.64,0.00025479,3]
[329516101,1718410312382,-230.48412302,0.00025479,3]
[329516102,1718410312393,-356.80159465,0.00025479,3]
[329516103,1718410312447,-746.77,0.00025479,3]
[329516104,1718410312466,-500.0,0.00025479,3]
[329516105,1718410312477,-500.0,0.00025479,3]
[329516106,1718410312488,-1740.68,0.00025479,3]
[329516107,1718410312500,-500.0,0.00025479,3]
[329516108,1718410312510,-2631.88,0.00025479,3]
[329516109,1718410312521,-2758.28,0.00025479,3]
[329516110,1718410312539,-500.0,0.00025479,3]
[329516111,1718410312553,-2886.16,0.00025479,3]
[329516112,1718410312602,-613.0,0.000255,13]
[329516113,1718410312634,-250.41456096,0.00025507,2]
[329516114,1718410312649,-2193.42114598,0.00025513,2]
[329516115,1718410312660,-153.0437648,0.00025515,2]
[329516116,1718410312716,-540.76402691,0.0002557,2]
[329516117,1718410312727,-1019.41802567,0.00025579,2]
[329516118,1718410312741,-161.18414086,0.00025587,2]
[329516119,1718410312758,-540.76402691,0.0002559,2]
[329516120,1718410312797,-154.60031802,0.00025599,2]
[329516121,1718410312864,-154.43145431,0.00025607,2]
[329516122,1718410312876,-1019.41802567,0.00025615,2]
[329516123,1718410312900,-403.46864164,0.00025617,2]
[329516124,1718410312928,-1830.0,0.00025633,2]
[329516125,1718410312941,-168.305,0.00025633,2]
[329516126,1718410312960,-616.0,0.00025633,2]
[329516127,1718410313001,-165.0,0.00025633,2]
[329516128,1718410313023,-2408.0,0.00025633,2]
[329516129,1718410313088,-447.0,0.00025633,2]
[329516130,1718410313101,-3110.0,0.00025633,2]
[329516131,1718410313124,-220.963,0.00025633,2]
[329516132,1718410313138,-1980.0,0.00025633,2]
[329516133,1718410313152,-150.38481616,0.00025661,2]
[329516134,1718410313203,-540.76402691,0.00025662,2]
[329516135,1718410313228,-403.46864164,0.00025713,2]
[329516136,1718410313271,-151.61524425,0.00025714,2]
[329516137,1718410313283,-155.85640552,0.00025726,2]
[329516138,1718410313295,-2988.80474067,0.00025741,2]
[329516139,1718410313309,-319.13261858,0.00025743,2]
[329516140,1718410313340,-309.84,0.00025745,2]
[329516141,1718410313362,-500.0,0.00025753,3]
[329516142,1718410313392,-1383.49,0.00025753,3]
[329516143,1718410313424,-500.0,0.00025753,3]
[329516144,1718410313455,-500.0,0.00025753,3]
[329516145,1718410313468,-189.46858436,0.00025753,3]
[329516146,1718410313494,-500.0,0.00025753,3]
[329516147,1718410313508,-557.17,0.00025753,3]
[329516148,1718410313536,-675.73,0.00025753,3]
[329516149,1718410313549,-14489.11,0.00025753,3]
[329516150,1718410313562,-1484.64,0.00025753,3]
[329516151,1718410313585,-500.0,0.00025753,3]
[329516152,1718410313602,-3525.04,0.00025753,3]
[329516153,1718410313622,-500.0,0.00025753,3]
[329516154,1718410313656,-1618.45,0.00025753,3]
[329516155,1718410313670,-1550.33,0.00025753,3]
[329516156,1718410313714,-1023.73,0.00025753,3]
[329516157,1718410313755,-809.82,0.00025753,3]
[329516158,1718410313769,-21338.5,0.00025753,3]
[329516159,1718410313782,-500.0,0.00025753,3]
[329516160,1718410313821,-500.0,0.00025753,3]
[329516161,1718410313865,-990.64,0.00025753,3]
[329516162,1718410313877,-1229.59,0.00025753,3]
[329516163,1718410313892,-500.0,0.00025753,3]
[329516164,1718410313906,-669.58,0.00025753,3]
[329516165,1718410313919,-500.0,0.00025753,3]
[329516166,1718410314004,-807.18,0.00025753,3]
[329516167,1718410314100,-612.37,0.00025753,3]
[329516168,1718410314122,-5017.63,0.00025753,3]
[329516169,1718410314158,-714.36,0.00025753,3]
[329516170,1718410314208,-216.77285051,0.00025753,3]
[329516171,1718410314240,-500.0,0.00025753,3]
[329516172,1718410314252,-1125.2,0.00025753,3]
[329516173,1718410314282,-844.74,0.00025753,3]
[329516174,1718410314348,-618.3381998,0.00025753,3]
[329516175,1718410314377,-742.58,0.00025753,3]
[329516176,1718410314413,-903.03,0.00025753,3]
[329516177,1718410314443,-500.0,0.00025753,3]
[329516178,1718410314469,-500.0,0.00025753,3]
[329516179,1718410314522,-870.64,0.00025753,3]
[329516180,1718410314542,-746.77,0.00025753,3]
[329516181,1718410314615,-500.0,0.00025753,3]
[329516182,1718410314632,-500.0,0.00025753,3]
[329516183,1718410314664,-1740.68,0.00025753,3]
[329516184,1718410314689,-172.74671342,0.00025753,3]
[329516185,1718410314702,-2631.88,0.00025753,3]
[329516186,1718410314713,-2758.28,0.00025753,3]
[329516187,1718410314726,-500.0,0.00025753,3]
[329516188,1718410314741,-2886.16,0.00025753,3]
[329516189,1718410314754,-166.81517632,0.00025779,2]
[329516190,1718410314769,-154.43145431,0.0002578,2]
[329516191,1718410314814,-1019.41802567,0.00025796,2]
[329516192,1718410314828,-678.38,0.000258,2]
[329516193,1718410314848,-1576.11,0.000258,2]
[329516194,1718410314884,-1019.41802567,0.00025836,2]
[329516195,1718410314912,-2193.42114598,0.00025847,2]
[329516196,1718410314946,-151.21954677,0.00025858,2]
[329516197,1718410314964,-188.49,0.0002589,2]
[329516198,1718410314986,-457.76,0.000259,2]
[329516199,1718410315039,-1507.284496,0.0002593,2]
[329516200,1718410315052,-150.38481616,0.0002595,2]
[329516201,1718410315064,-446.59982923,0.00025995,2]
[329516202,1718410315078,-2193.42114598,0.00025998,2]
[329516203,1718410315090,-16709.07375885,0.00026,5]
[329516204,1718410315165,-2000.0,0.00026,2]
[329516205,1718410315195,-613.0,0.00026,14]
[329516206,1718410315252,-153.48233137,0.00026001,2]
[329516207,1718410315269,-540.76402691,0.00026009,2]
[329516208,1718410315298,-154.60031802,0.0002602,2]
[329516209,1718410315322,-887507.51729977,0.00026027,13]
[329516210,1718410315360,-500.0,0.00026027,3]
[329516211,1718410315373,-1383.49,0.00026027,3]
[329516212,1718410315385,-333.78751572,0.00026027,3]
[329516213,1718410315404,-631.11326797,0.00026027,3]
[329516214,1718410315444,-211.51448831,0.00026027,3]
[329516215,1718410315475,-557.17,0.00026027,3]
[329516216,1718410315516,-675.73,0.00026027,3]
[329516217,1718410315532,-14489.11,0.00026027,3]
[329516218,1718410315544,-1484.64,0.00026027,3]
[329516219,1718410315584,-369.74075124,0.00026027,3]
[329516220,1718410315606,-3525.04,0.00026027,3]
[329516221,1718410315618,-366.14450293,0.00026027,3]
[329516222,1718410315659,-1618.45,0.00026027,3]
[329516223,1718410315689,-1550.33,0.00026027,3]
[329516224,1718410315711,-1023.73,0.00026027,3]
[329516225,1718410315723,-809.82,0.00026027,3]
[329516226,1718410315743,-21338.5,0.00026027,3]
[329516227,1718410315760,-500.0,0.00026027,3]
[329516228,1718410315773,-500.0,0.00026027,3]
[329516229,1718410315785,-990.64,0.00026027,3]
[329516230,1718410315824,-1229.59,0.00026027,3]
[329516231,1718410315868,-500.0,0.00026027,3]
[329516232,1718410315892,-669.58,0.00026027,3]
[329516233,1718410315931,-500.0,0.00026027,3]
[329516234,1718410315973,-807.18,0.00026027,3]
[329516235,1718410316021,-612.37,0.00026027,3]
[329516236,1718410316034,-5017.63,0.00026027,3]
[329516237,1718410316046,-714.36,0.00026027,3]
[329516238,1718410316058,-503.30448731,0.00026027,3]
[329516239,1718410316076,-1125.2,0.00026027,3]
[329516240,1718410316089,-844.74,0.00026027,3]
[329516241,1718410316117,-742.58,0.00026027,3]
[329516242,1718410316128,-903.03,0.00026027,3]
[329516243,1718410316143,-500.0,0.00026027,3]
[329516244,1718410316156,-500.0,0.00026027,3]
[329516245,1718410316171,-870.64,0.00026027,3]
[329516246,1718410316187,-746.77,0.00026027,3]
[329516247,1718410316203,-500.0,0.00026027,3]
[329516248,1718410316215,-500.0,0.00026027,3]
[329516249,1718410316228,-1740.68,0.00026027,3]
[329516250,1718410316260,-2631.88,0.00026027,3]
[329516251,1718410316281,-2758.28,0.00026027,3]
[329516252,1718410316294,-500.0,0.00026027,3]
[329516253,1718410316340,-2886.16,0.00026027,3]
[329516254,1718410316377,-153.48233137,0.00026042,2]
[329516255,1718410316389,-174.39636688,0.00026061,2]
[329516256,1718410316401,-161.18414086,0.00026091,2]
[329516257,1718410316428,-153.48233137,0.00026097,2]
[329516258,1718410316442,-152.79946212,0.00026124,2]
[329516259,1718410316459,-540.76402691,0.00026134,2]
[329516260,1718410316477,-152.06773046,0.00026146,2]
[329516261,1718410316489,-161.18414086,0.00026151,2]
[329516262,1718410316502,-167.14290053,0.00026208,2]
[329516263,1718410316513,-153.48233137,0.00026213,2]
[329516264,1718410316529,-2988.80474067,0.00026223,2]
[329516265,1718410316545,-161.18414086,0.00026238,2]
[329516266,1718410316559,-403.46864164,0.00026263,2]
[329516267,1718410316598,-1170.82039515,0.00026285,2]
[329516268,1718410316612,-150.0,0.00026297,2]
[329516269,1718410316630,-500.0,0.00026301,3]
[329516270,1718410316680,-1383.49,0.00026301,3]
[329516271,1718410316700,-557.17,0.00026301,3]
[329516272,1718410316713,-675.73,0.00026301,3]
[329516273,1718410316736,-14489.11,0.00026301,3]
[329516274,1718410316751,-1484.64,0.00026301,3]
[329516275,1718410316764,-3525.04,0.00026301,3]
[329516276,1718410316783,-1618.45,0.00026301,3]
[329516277,1718410316796,-1550.33,0.00026301,3]
[329516278,1718410316808,-1023.73,0.00026301,3]
[329516279,1718410316820,-809.82,0.00026301,3]
[329516280,1718410316839,-21338.5,0.00026301,3]
[329516281,1718410316852,-500.0,0.00026301,3]
[329516282,1718410316866,-500.0,0.00026301,3]
[329516283,1718410316877,-990.64,0.00026301,3]
[329516284,1718410316888,-1229.59,0.00026301,3]
[329516285,1718410316899,-268.55018911,0.00026301,3]
[329516286,1718410316927,-669.58,0.00026301,3]
[329516287,1718410316943,-807.18,0.00026301,3]
[329516288,1718410317017,-612.37,0.00026301,3]
[329516289,1718410317029,-5017.63,0.00026301,3]
[329516290,1718410317043,-714.36,0.00026301,3]
[329516291,1718410317056,-1125.2,0.00026301,3]
[329516292,1718410317072,-844.74,0.00026301,3]
[329516293,1718410317100,-742.58,0.00026301,3]
[329516294,1718410317118,-903.03,0.00026301,3]
[329516295,1718410317140,-544.60203296,0.00026301,3]
[329516296,1718410317167,-500.0,0.00026301,3]
[329516297,1718410317217,-870.64,0.00026301,3]
[329516298,1718410317288,-746.77,0.00026301,3]
[329516299,1718410317309,-500.0,0.00026301,3]
[329516300,1718410317353,-500.0,0.00026301,3]
[329516301,1718410317377,-1740.68,0.00026301,3]
[329516302,1718410317393,-2631.88,0.00026301,3]
[329516303,1718410317406,-2758.28,0.00026301,3]
[329516304,1718410317425,-500.0,0.00026301,3]
[329516305,1718410317444,-2000.0,0.00026301,3]
[329516306,1718410317457,-152.79946212,0.00026304,2]
[329516307,1718410317487,-150.38481616,0.00026306,2]
[329516308,1718410317504,-151.61524425,0.00026366,2]
[329516309,1718410317517,-152.79946212,0.0002637,2]
[329516310,1718410317531,-154.43145431,0.00026407,2]
[329516311,1718410317543,-161.18414086,0.0002641,2]
[329516312,1718410317556,-150.0,0.00026415,2]
[329516313,1718410317569,-166.66666665,0.00026417,2]
[329516314,1718410317581,-1008.54,0.0002643,2]
[329516315,1718410317592,-250.41456096,0.00026461,2]
[329516316,1718410317605,-10353.0,0.000265,4]
[329516317,1718410317618,-613.0,0.000265,14]
[329516318,1718410317636,-150.0,0.00026516,2]
[329516319,1718410317647,-152.0,0.00026517,4]
[329516320,1718410317669,-150.0,0.00026518,2]
[329516321,1718410317708,-150.38481616,0.00026525,2]
[329516322,1718410317728,-151.21954677,0.00026528,2]
[329516323,1718410317818,-150.38481616,0.00026533,2]
[329516324,1718410317867,-403.46864164,0.00026574,2]
[329516325,1718410317907,-500.0,0.00026575,3]
[329516326,1718410317925,-1383.49,0.00026575,3]
[329516327,1718410317938,-557.17,0.00026575,3]
[329516328,1718410317950,-675.73,0.00026575,3]
[329516329,1718410317964,-14489.11,0.00026575,3]
[329516330,1718410317977,-1484.64,0.00026575,3]
[329516331,1718410317989,-3525.04,0.00026575,3]
[329516332,1718410318002,-1618.45,0.00026575,3]
[329516333,1718410318029,-1550.33,0.00026575,3]
[329516334,1718410318062,-1023.73,0.00026575,3]
[329516335,1718410318081,-809.82,0.00026575,3]
[329516336,1718410318093,-21338.5,0.00026575,3]
[329516337,1718410318129,-253.99745466,0.00026575,3]
[329516338,1718410318143,-500.0,0.00026575,3]
[329516339,1718410318155,-990.64,0.00026575,3]
[329516340,1718410318172,-1229.59,0.00026575,3]
[329516341,1718410318187,-669.58,0.00026575,3]
[329516342,1718410318212,-807.18,0.00026575,3]
[329516343,1718410318230,-612.37,0.00026575,3]
[329516344,1718410318249,-5017.63,0.00026575,3]
[329516345,1718410318274,-714.36,0.00026575,3]
[329516346,1718410318288,-1125.2,0.00026575,3]
[329516347,1718410318306,-844.74,0.00026575,3]
[329516348,1718410318320,-742.58,0.00026575,3]
[329516349,1718410318333,-903.03,0.00026575,3]
[329516350,1718410318368,-513.43117909,0.00026575,3]
[329516351,1718410318383,-870.64,0.00026575,3]
[329516352,1718410318397,-746.77,0.00026575,3]
[329516353,1718410318448,-500.0,0.00026575,3]
[329516354,1718410318638,-1740.68,0.00026575,3]
[329516355,1718410318657,-2631.88,0.00026575,3]
[329516356,1718410318675,-2758.28,0.00026575,3]
[329516357,1718410318686,-500.0,0.00026575,3]
[329516358,1718410318713,-161.18414086,0.00026577,2]
[329516359,1718410318725,-153.48233137,0.00026579,2]
[329516360,1718410318737,-250.41456096,0.00026638,2]
[329516361,1718410318749,-2193.42114598,0.00026644,2]
[329516362,1718410318766,-151.0,0.00026669,2]
[329516363,1718410318784,-153.0437648,0.00026674,2]
[329516364,1718410318826,-180.26768708,0.00026676,2]
[329516365,1718410318850,-1019.41802567,0.00026689,2]
[329516366,1718410318916,-678.38,0.000267,2]
[329516367,1718410318930,-1576.11,0.000267,2]
[329516368,1718410318956,-153.25500121,0.00026703,2]
[329516369,1718410318968,-2988.80474067,0.00026705,2]
[329516370,1718410318980,-166.66666667,0.00026712,2]
[329516371,1718410318992,-150.0,0.00026715,2]
[329516372,1718410319009,-152.06773046,0.0002672,2]
[329516373,1718410319021,-2193.42114598,0.0002672,2]
[329516374,1718410319031,-150.0,0.00026726,2]
[329516375,1718410319058,-356.62,0.0002673,2]
[329516376,1718410319069,-150.0,0.00026738,2]
[329516377,1718410319080,-472.39,0.00026748,2]
[329516378,1718410319091,-250.41456096,0.00026789,2]
[329516379,1718410319102,-457.76,0.000268,2]
[329516380,1718410319118,-153.83063426,0.00026817,2]
[329516381,1718410319131,-1760.93,0.00026822,2]
[329516382,1718410319143,-255.08,0.00026822,2]
[329516383,1718410319192,-446.59982923,0.00026833,2]
[329516384,1718410319239,-180.3604428,0.00026833,2]
[329516385,1718410319267,-150.0,0.00026835,2]
[329516386,1718410319295,-150.0,0.0002684,2]
[329516387,1718410319318,-150.0,0.00026841,2]
[329516388,1718410319344,-500.0,0.00026849,3]
[329516389,1718410319364,-1383.49,0.00026849,3]
[329516390,1718410319424,-557.17,0.00026849,3]
[329516391,1718410319483,-675.73,0.00026849,3]
[329516392,1718410319516,-14489.11,0.00026849,3]
[329516393,1718410319563,-1484.64,0.00026849,3]
[329516394,1718410319575,-3525.04,0.00026849,3]
[329516395,1718410319605,-1618.45,0.00026849,3]
[329516396,1718410319639,-1550.33,0.00026849,3]
[329516397,1718410319665,-1023.73,0.00026849,3]
[329516398,1718410319696,-809.82,0.00026849,3]
[329516399,1718410319734,-21338.5,0.00026849,3]
[329516400,1718410319760,-500.0,0.00026849,3]
[329516401,1718410319788,-990.64,0.00026849,3]
[329516402,1718410319808,-1229.59,0.00026849,3]
[329516403,1718410319830,-669.58,0.00026849,3]
[329516404,1718410319852,-807.18,0.00026849,3]
[329516405,1718410319901,-612.37,0.00026849,3]
[329516406,1718410319937,-5017.63,0.00026849,3]
[329516407,1718410319992,-714.36,0.00026849,3]
[329516408,1718410320080,-1125.2,0.00026849,3]
[329516409,1718410320117,-844.74,0.00026849,3]
[329516410,1718410320148,-742.58,0.00026849,3]
[329516411,1718410320176,-903.03,0.00026849,3]
[329516412,1718410320189,-870.64,0.00026849,3]
[329516413,1718410320201,-746.77,0.00026849,3]
[329516414,1718410320213,-500.0,0.00026849,3]
[329516415,1718410320240,-1740.68,0.00026849,3]
[329516416,1718410320269,-2631.88,0.00026849,3]
[329516417,1718410320280,-2758.28,0.00026849,3]
[329516418,1718410320305,-500.0,0.00026849,3]
[329516419,1718410320342,-150.0,0.00026852,2]
[329516420,1718410320388,-150.0,0.00026862,2]
[329516421,1718410320412,-150.0,0.00026878,2]
[329516422,1718410320430,-150.0,0.00026884,2]
[329516423,1718410320497,-1019.41802567,0.00026885,2]
[329516424,1718410320512,-2193.42114598,0.00026889,2]
[329516425,1718410320550,-2193.42114598,0.0002689,2]
[329516426,1718410320562,-160.9244403,0.00026898,2]
[329516427,1718410320572,-150.0,0.00026899,2]
[329516428,1718410320585,-150.0,0.00026913,2]
[329516429,1718410320596,-161.18414086,0.0002693,2]
[329516430,1718410320623,-153.48233137,0.00026935,2]
[329516431,1718410320633,-150.0,0.00026938,2]
[329516432,1718410320643,-150.0,0.0002694,2]
[329516433,1718410320665,-890.77,0.00026942,2]
[329516434,1718410320688,-150.0,0.00026951,2]
[329516435,1718410320700,-150.0,0.00026952,2]
[329516436,1718410320714,-150.0,0.00026952,2]
[329516437,1718410320725,-150.0,0.00026954,2]
[329516438,1718410320739,-423.01,0.00026959,2]
[329516439,1718410320753,-1195.5,0.00026959,2]
[329516440,1718410320769,-300.0,0.00026959,2]
[329516441,1718410320786,-300.0,0.00026959,2]
[329516442,1718410320800,-300.0,0.00026959,2]
[329516443,1718410320868,-150.0,0.00026959,2]
[329516444,1718410320916,-150.0,0.00026963,2]
[329516445,1718410320951,-150.0,0.00026964,2]
[329516446,1718410321001,-150.0,0.00026972,2]
[329516447,1718410321022,-150.0,0.00026975,2]
[329516448,1718410321035,-403.46864164,0.00026977,2]
[329516449,1718410321103,-150.0,0.00026986,2]
[329516450,1718410321171,-150.0,0.00026993,2]